bitfinex/quotes_ETHUSD_20241223
["timestamp","ask_amount","ask_price","bid_price","bid_amount"]
[1734986889860,0.1657376,3384.2,3383.5,0.37484957]
[1734986890067,0.1657376,3384.2,3383.4,0.02954571]
[1734986890278,0.1657376,3384.2,3383.3,2.95561]
[1734986890432,0.1657376,3384.2,3383.4,0.02954982]
[1734986890637,0.1657376,3384.2,3383.4,2.95552]
[1734986890861,0.1657376,3384.2,3383.1,0.0295498]
[1734986891034,0.1657376,3384.2,3383.1,0.38317498]
[1734986891238,0.1657376,3384.2,3383.2,2.95577]
[1734986891474,0.1657376,3384.2,3382.8,0.8022]
[1734986891475,2.955,3384.1,3383.0,2.95593]
[1734986891636,3.5113,3384.1,3383.0,2.95593]
[1734986891830,3.5113,3384.1,3382.8,2.95604]
[1734986892130,3.5113,3384.1,3382.4,4.25681134]
[1734986892131,0.5563,3384.1,3382.4,4.25681134]
[1734986892333,0.5563,3384.1,3382.6,0.72568113]
[1734986892842,2.95526,3383.8,3382.7,2.9562]
[1734986893095,0.5563,3383.6,3382.6,0.72568113]
[1734986893375,0.5563,3383.6,3382.0,3.8317]
[1734986893376,2.95556,3383.5,3382.3,2.95656]
[1734986893579,0.5563,3383.6,3382.0,3.78845]
[1734986893937,2.95569,3383.4,3382.0,3.78845]
[1734986894170,2.95569,3383.4,3382.1,2.95672]
[1734986894369,2.95579,3383.2,3382.1,2.95672]
[1734986894575,2.95577,3383.3,3382.2,0.378842]
[1734986895243,0.5563,3383.6,3382.2,0.378842]
[1734986895477,0.5563,3383.6,3382.9,2.956]
[1734986895645,0.5563,3383.6,3382.4,2.95648]
[1734986895646,0.5563,3384.1,3383.2,2.95577]
[1734986895851,0.5563,3384.1,3383.3,2.95564]
[1734986896455,0.5563,3384.1,3383.4,2.95556]
[1734986896669,0.5563,3384.1,3383.2,2.95577]
[1734986896922,2.95508,3384.0,3382.8,2.95613]
[1734986897066,2.95508,3384.0,3382.6,3.7731]
[1734986897389,2.95525,3383.9,3382.6,3.7731]
[1734986897591,0.5563,3383.6,3382.4,0.59270056]
[1734986897890,2.95555,3383.5,3382.5,0.43206806]
[1734986898309,2.95564,3383.4,3382.5,0.43206806]
[1734986898487,0.5563,3383.6,3382.2,3.72814]
[1734986898789,2.95561,3383.4,3382.2,3.72814]
[1734986898959,2.9557,3383.3,3382.2,3.72814]
[1734986899162,0.5563,3383.6,3382.2,0.7715]
[1734986899367,2.95574,3383.3,3382.3,0.372831]
[1734986899550,0.5563,3383.6,3382.3,0.372831]
[1734986899750,0.5563,3383.6,3382.4,3.50648]
[1734986899990,0.5563,3383.6,3382.9,2.95596]
[1734986900194,0.5563,3384.0,3383.2,2.95576]
[1734986900390,0.5563,3384.0,3382.8,3.7249]
[1734986900594,0.5563,3384.0,3382.4,6.96106134]
[1734986900595,0.5563,3384.0,3382.5,3.0]
[1734986900750,0.5563,3384.0,3383.0,2.95592]
[1734986900950,0.5563,3384.0,3383.1,2.95581]
[1734986901154,0.5563,3384.0,3383.2,0.7688]
[1734986901403,0.1657376,3384.2,3383.8,2.95523]
[1734986901554,0.1657376,3384.2,3384.1,2.95499]
[1734986902558,0.1657376,3384.2,3384.1,5.95499]
[1734986903027,0.5563,3385.8,3384.2,0.8223]
[1734986903172,0.5563,3385.8,3385.2,2.95396]
[1734986903608,1.78302237,3386.2,3385.2,2.95396]
[1734986903914,1.78302237,3386.2,3381.5,1.40927341]
[1734986903915,2.95337,3386.0,3384.4,0.8223]
[1734986904064,2.95337,3386.0,3384.5,0.02953578]
[1734986904265,0.5563,3386.2,3384.6,0.15845648]
[1734986904471,0.5563,3386.2,3385.2,2.95401]
[1734986904692,0.5563,3386.2,3384.7,0.59306344]
[1734986904870,2.95327,3386.1,3384.9,2.95428]
[1734986905078,0.5563,3386.2,3384.7,2.95445]
[1734986905277,2.95326,3386.1,3384.8,0.65675178]
[1734986905480,0.5563,3386.2,3384.9,0.02953413]
[1734986905692,0.5563,3386.2,3384.8,0.65675178]
[1734986906183,0.5563,3386.2,3385.0,2.95415]
[1734986907533,0.5563,3386.2,3385.1,2.95411]
[1734986907704,0.5563,3386.2,3385.2,0.295411]
[1734986908004,3.50947,3386.2,3385.0,2.95418]
[1734986909222,2.9527,3386.8,3385.5,2.95375]
[1734986909507,2.9527,3386.8,3385.6,0.02953008]
[1734986909709,3.50864,3387.2,3385.3,0.7867]
[1734986909710,2.95282,3386.6,3385.3,0.7867]
[1734986909910,2.95282,3386.6,3385.4,2.95378]
[1734986910077,2.95282,3386.6,3385.5,0.37700092]
[1734986911025,0.55,3386.6,3384.9,0.7901]
[1734986911224,0.55,3386.0,3384.9,0.7901]
[1734986911440,0.5563,3385.9,3384.9,0.7901]
[1734986911725,0.5563,3385.9,3385.0,2.95413]
[1734986911901,0.5563,3385.9,3385.1,0.49999703]
[1734986912102,0.5563,3385.9,3385.1,1.68279903]
[1734986912427,0.5563,3385.9,3385.1,0.49999703]
[1734986914102,0.5563,3386.3,3385.2,2.98356382]
[1734986914350,0.5563,3386.3,3385.7,2.95356]
[1734986914714,3.50908,3386.7,3385.4,2.9538]
[1734986914871,0.5563,3386.7,3385.3,0.81209852]
[1734986915366,0.5563,3386.7,3385.1,0.49999703]
[1734986915557,0.5563,3386.4,3385.1,0.49999703]
[1734986915756,3.50325,3386.1,3385.1,0.49999703]
[1734986915951,2.95333,3386.0,3385.1,0.49999703]
[1734986916553,2.95333,3386.0,3384.8,0.65675178]
[1734986916554,0.55,3385.5,3384.8,0.65675178]
[1734986916802,0.55,3385.5,3384.6,4.137456]
[1734986916953,0.5563,3385.6,3384.7,0.59029925]
[1734986917153,0.5563,3386.0,3384.8,2.95438]
[1734986917400,3.50914,3386.6,3385.5,2.95369]
[1734986917598,2.95307,3386.3,3385.3,0.7901]
[1734986917794,3.50914,3386.6,3385.3,3.328298]
[1734986917795,2.95292,3386.5,3385.3,3.328298]
[1734986917994,0.5563,3386.6,3385.3,3.35781858]
[1734986918374,0.5563,3386.6,3385.6,2.95364]
[1734986918573,0.5563,3386.6,3385.3,3.328338]
[1734986918778,0.5563,3386.6,3385.3,0.374408]
[1734986918969,2.95318,3386.2,3384.9,0.7901]
[1734986919174,2.95333,3386.1,3384.9,2.95429]
[1734986919411,0.5563,3385.9,3385.3,2.95393]
[1734986919617,0.5563,3386.4,3385.4,2.95386]
[1734986919929,0.5563,3386.4,3385.5,0.40472814]
[1734986920131,0.5563,3386.4,3385.4,2.9538]
[1734986920325,0.5563,3387.1,3386.1,2.95322]
[1734986920537,0.1657376,3387.5,3386.8,2.95263]
[1734986920736,0.1657376,3387.5,3386.4,3.73893]
[1734986920737,0.1657376,3387.5,3386.6,2.95279]
[1734986921528,0.1657376,3387.5,3386.5,2.95287]
[1734986921736,0.1657376,3387.5,3386.6,0.67683902]
[1734986922115,0.1657376,3387.5,3386.6,3.62962902]
[1734986924228,0.1657376,3387.5,3386.6,0.67683902]
[1734986924436,0.1657376,3387.5,3386.6,3.62963902]
[1734986924940,3.50215,3387.4,3386.4,0.786]
[1734986925145,0.55,3387.4,3386.4,0.786]
[1734986925542,0.1657376,3387.5,3386.5,0.60657111]
[1734986925746,0.1657376,3387.5,3386.6,3.13066075]
[1734986925963,0.1657376,3387.5,3387.0,3.13066075]
[1734986926166,0.1657376,3387.5,3387.2,2.9522]
[1734986926660,0.1657376,3387.5,3387.0,2.95245]
[1734986926879,0.1657376,3387.5,3386.8,2.95261]
[1734986927229,0.1657376,3387.5,3386.6,2.95276]
[1734986927554,0.5563,3387.3,3386.5,0.57704941]
[1734986927909,0.5563,3387.3,3386.2,2.95314]
[1734986927910,0.55,3387.2,3386.2,2.95314]
[1734986928243,0.55,3387.2,3385.6,2.95364]
[1734986928244,0.55,3386.8,3385.6,2.95364]
[1734986928425,0.55,3386.8,3385.4,3.13066075]
[1734986928426,0.5563,3386.6,3385.4,3.13066075]
[1734986928761,0.5563,3386.6,3385.6,2.95365]
[1734986929397,3.50913,3386.6,3385.5,3.0]
[1734986929513,3.50913,3386.6,3385.6,1.58860949]
[1734986929947,3.50913,3386.6,3385.6,0.59693542]
[1734986930162,2.95308,3386.3,3385.6,0.59693542]
[1734986930372,3.50341,3386.0,3384.6,4.31363675]
[1734986930716,3.50341,3386.0,3384.9,0.59415374]
[1734986930916,3.50341,3386.0,3385.1,2.95409]
[1734986930917,0.55,3386.0,3385.1,2.95409]
[1734986931246,0.55,3386.0,3385.1,0.35482437]
[1734986931449,0.55,3386.0,3385.2,2.95401]
[1734986931916,0.5563,3386.1,3385.2,2.95401]
[1734986932112,0.5563,3386.1,3385.2,0.02953252]
[1734986932342,2.95255,3386.9,3385.6,2.95361]
[1734986932548,0.5563,3387.1,3385.7,2.95356]
[1734986932749,0.5563,3386.9,3385.5,2.95374]
[1734986932915,2.95281,3386.6,3385.5,2.95374]
[1734986933151,0.5563,3386.9,3385.3,3.75512]
[1734986933152,0.5563,3386.4,3385.3,3.75512]
[1734986933418,0.5563,3386.4,3385.3,0.8012]
[1734986933620,0.5563,3386.4,3385.4,2.95385]
[1734986933917,0.5563,3386.4,3385.4,3.629355]
[1734986934170,2.95318,3386.2,3385.0,3.13066075]
[1734986934470,0.5563,3386.4,3385.4,0.59898963]
[1734986934671,3.50313,3386.3,3385.4,0.59898963]
[1734986935040,0.5563,3386.4,3385.1,0.02953376]
[1734986935367,0.5563,3386.4,3385.9,2.95341]
[1734986935569,0.5563,3386.4,3385.9,3.248751]
[1734986936228,0.5563,3386.4,3385.2,0.60236539]
[1734986936622,0.5563,3386.4,3385.3,0.02953047]
[1734986937160,0.5563,3386.4,3385.2,0.60236539]
[1734986937469,0.5563,3386.4,3385.6,2.95362]
[1734986937979,0.5563,3386.4,3385.3,2.95394]
[1734986938127,0.5563,3386.4,3385.4,0.65563054]
[1734986938331,0.5563,3386.4,3385.2,0.63189425]
[1734986938687,0.5563,3386.8,3385.8,3.13066075]
[1734986938842,0.5563,3386.8,3385.9,0.02952572]
[1734986939042,0.5563,3386.8,3385.8,3.13066075]
[1734986939347,0.5563,3386.8,3385.9,0.39613865]
[1734986939656,0.5563,3386.8,3386.4,2.9529]
[1734986940357,0.5563,3386.8,3386.3,2.95306]
[1734986941058,0.5563,3386.8,3386.2,0.58530606]
[1734986941264,0.5563,3386.8,3385.6,0.8307281]
[1734986941437,0.5563,3386.8,3386.2,2.95311]
[1734986941637,0.5563,3386.8,3386.3,2.953]
[1734986942134,0.5563,3386.8,3386.1,0.60153002]
[1734986942347,0.1657376,3387.5,3385.2,0.7642]
[1734986942526,0.7220376,3387.5,3386.7,2.9527]
[1734986942724,0.1657376,3387.5,3387.2,2.95226]
[1734986942947,0.1657376,3387.5,3387.3,0.02951811]
[1734986943146,0.1657376,3387.5,3387.3,2.9522]
[1734986943369,0.1657376,3387.5,3387.1,2.95235]
[1734986943732,0.1657376,3387.5,3387.0,2.95245]
[1734986943933,0.1657376,3387.5,3387.2,2.9522]
[1734986944333,0.1657376,3387.5,3386.8,0.7642]
[1734986944582,0.1657376,3387.5,3386.8,4.40628607]
[1734986944795,0.1657376,3387.5,3386.8,1.45368607]
[1734986944952,0.1657376,3387.5,3387.1,2.9523]
[1734986945149,0.1657376,3387.5,3386.8,1.45368607]
[1734986945150,0.1657376,3387.5,3387.4,2.95211]
[1734986945354,0.1657376,3387.5,3387.4,3.247321]
[1734986945727,0.1657376,3387.5,3387.4,0.295211]
[1734986945854,0.1657376,3387.5,3386.9,2.95247]
[1734986946047,0.7220376,3387.5,3386.6,3.0]
[1734986946246,2.95212,3387.4,3386.0,0.7642]
[1734986946450,2.95212,3387.4,3386.3,2.95302]
[1734986946683,2.95212,3387.4,3386.3,0.37467426]
[1734986946884,2.95212,3387.4,3386.4,2.95298]
[1734986947092,0.7220376,3387.5,3386.5,2.95289]
[1734986947262,0.7220376,3387.5,3386.7,2.95271]
[1734986947468,0.7220376,3387.5,3386.5,2.95288]
[1734986948283,0.7220376,3387.5,3386.4,0.58394462]
[1734986948489,0.7220376,3387.5,3386.6,2.9528]
[1734986949392,0.7220376,3387.5,3386.4,0.58394462]
[1734986949393,2.95263,3386.9,3386.4,0.58394462]
[1734986949554,0.5563,3386.5,3385.3,3.92096075]
[1734986949892,1.1063,3386.4,3385.2,1.19205159]
[1734986950070,0.5563,3386.0,3385.2,1.19205159]
[1734986950396,2.95372,3385.6,3385.2,1.19205159]
[1734986950555,2.95352,3385.8,3384.9,0.60003018]
[1734986950753,2.95342,3385.9,3384.7,1.19205159]
[1734986950980,2.95359,3385.7,3384.8,0.7117615]
[1734986951193,3.50344,3385.9,3384.8,0.7117615]
[1734986951372,0.55,3385.9,3384.8,0.7117615]
[1734986951564,2.9536,3385.7,3384.8,0.7117615]
[1734986951960,0.55,3385.9,3384.6,2.95453]
[1734986952298,2.95352,3385.8,3384.6,0.60577181]
[1734986952494,0.5563,3386.0,3384.6,0.60577181]
[1734986952712,0.5563,3386.0,3384.0,0.7961]
[1734986952713,2.95342,3385.9,3384.0,0.7961]
[1734986953019,3.51054,3385.0,3383.9,4.138261]
[1734986953315,3.51054,3385.0,3384.0,0.72689218]
[1734986954059,0.5563,3385.0,3384.0,0.72689218]
[1734986954256,3.51052,3385.0,3383.8,2.95517]
[1734986954489,0.5563,3385.0,3384.2,2.95482]
[1734986954688,0.5563,3385.0,3384.4,2.9547]
[1734986954861,1.78302237,3385.4,3384.2,0.7961]
[1734986955067,1.78302237,3385.4,3384.5,2.95456]
[1734986955256,1.78302237,3385.4,3384.6,0.02953821]
[1734986955475,1.78302237,3385.4,3384.8,2.95436]
[1734986956288,0.5563,3385.4,3384.8,2.95436]
[1734986956509,0.5563,3385.4,3384.6,0.59697867]
[1734986956670,0.5563,3385.4,3384.2,3.7961]
[1734986956865,0.5563,3385.4,3384.3,1.01770578]
[1734986957193,0.5563,3385.4,3384.5,2.95455]
[1734986957363,0.5563,3385.4,3384.3,0.98816808]
[1734986958100,0.5563,3385.4,3384.4,2.95466]
[1734986958595,0.5563,3385.4,3384.5,2.95461]
[1734986958895,0.5563,3385.4,3384.6,3.34880781]
[1734986959515,2.95394,3385.3,3384.3,0.98816808]
[1734986959678,2.95403,3385.2,3384.1,2.95498]
[1734986960144,0.5563,3385.2,3383.8,6.782]
[1734986960269,0.55,3385.1,3384.0,0.59117414]
[1734986960623,3.51085,3384.7,3383.6,2.95542]
[1734986960830,0.55,3384.2,3383.7,0.60201322]
[1734986960960,0.55,3384.5,3383.3,0.60657392]
[1734986961167,3.51087,3384.6,3383.3,0.60657392]
[1734986961417,3.51087,3384.6,3383.4,0.35624339]
[1734986961573,0.5563,3384.6,3383.4,0.35624339]
[1734986961781,2.95472,3384.5,3383.4,0.35624339]
[1734986961979,0.5563,3384.1,3383.3,0.60657392]
[1734986962214,0.5563,3384.1,3382.9,2.95603]
[1734986962415,2.95534,3383.8,3382.6,4.14835159]
[1734986962724,0.5563,3384.0,3382.8,0.58169734]
[1734986963067,0.5563,3384.0,3382.9,0.8268]
[1734986963323,0.5563,3384.0,3383.4,2.95555]
[1734986963480,0.5563,3384.0,3383.6,2.95542]
[1734986963888,0.5563,3384.0,3383.2,2.95569]
[1734986964324,0.5563,3384.0,3383.1,3.0]
[1734986964627,0.5563,3383.5,3382.8,3.53781734]
[1734986964826,0.5563,3383.5,3382.8,3.89159907]
[1734986964969,0.5563,3384.3,3383.2,2.95576]
[1734986965171,1.1063,3384.3,3382.8,0.93547907]
[1734986965369,1.1063,3384.3,3383.4,2.95555]
[1734986965370,0.5563,3384.3,3383.4,2.95555]
[1734986965573,0.55,3384.2,3382.8,3.93547907]
[1734986965826,0.55,3383.7,3382.8,0.58169734]
[1734986965989,0.55,3383.7,3382.7,1.183607]
[1734986965990,2.95564,3383.4,3382.7,1.183607]
[1734986966207,2.95565,3383.4,3382.7,1.183607]
[1734986966522,2.95572,3383.3,3382.5,0.59335416]
[1734986966731,0.5563,3383.6,3382.0,3.9701199]
[1734986966871,0.5563,3383.6,3382.7,2.95621]
[1734986967071,0.5563,3383.6,3383.0,2.95588]
[1734986967381,2.95506,3384.1,3382.5,0.58908756]
[1734986967382,0.55,3384.1,3383.2,2.95577]
[1734986967585,0.55,3384.1,3383.3,0.0295532]
[1734986967919,0.55,3384.1,3382.5,0.58908756]
[1734986967920,0.55,3384.1,3382.5,4.41724077]
[1734986968070,0.55,3384.1,3382.6,4.46881445]
[1734986969100,2.95512,3384.0,3382.6,4.46881445]
[1734986969313,0.5563,3384.2,3382.6,4.49836768]
[1734986969473,0.5563,3384.2,3382.8,3.13066075]
[1734986969672,0.5563,3384.2,3383.1,2.95582]
[1734986969903,0.5563,3384.2,3383.2,0.295582]
[1734986970068,2.95483,3384.3,3382.6,4.46881445]
[1734986970069,0.5563,3384.0,3382.6,4.46881445]
[1734986970513,0.5563,3383.8,3382.6,4.46881445]
[1734986970704,2.95542,3383.7,3382.6,7.42507445]
[1734986971502,0.5563,3383.6,3382.6,1.46881445]
[1734986971708,0.5563,3383.6,3382.7,2.9562]
[1734986972282,0.5563,3383.6,3382.6,0.02955711]
[1734986972487,0.5563,3384.8,3382.9,0.7655]
[1734986972720,3.51077,3384.7,3382.9,0.7655]
[1734986972924,0.5563,3383.8,3382.5,3.0]
[1734986973124,0.5563,3383.8,3382.4,5.07986775]
[1734986973125,2.95559,3383.5,3382.4,5.07986775]
[1734986973346,2.95559,3383.5,3382.4,8.03632775]
[1734986973828,0.5563,3383.8,3382.9,2.95596]
[1734986974033,0.5563,3383.8,3383.0,0.0295539]
[1734986974195,0.5563,3383.8,3383.3,2.95568]
[1734986974525,0.5563,3385.0,3383.4,0.79505194]
[1734986974691,0.5563,3385.0,3383.6,2.95538]
[1734986975088,0.5563,3385.0,3383.4,0.7655]
[1734986975288,0.5563,3385.0,3384.3,2.95473]
[1734986975529,0.5563,3385.0,3384.4,0.295473]
[1734986975707,0.5563,3385.0,3384.3,2.95475]
[1734986976025,0.5563,3385.0,3384.0,3.13066075]
[1734986976624,0.5563,3385.0,3383.7,3.0]
[1734986976924,0.5563,3385.0,3383.9,2.95513]
[1734986977277,0.5563,3385.0,3383.7,3.0]
[1734986977478,0.5563,3385.0,3383.8,0.96770276]
[1734986977673,0.5563,3385.0,3383.9,0.02954562]
[1734986977982,2.95368,3385.6,3384.4,2.95467]
[1734986978400,2.95368,3385.6,3384.1,3.7655]
[1734986978739,0.5563,3385.7,3384.2,0.68961608]
[1734986979235,0.5563,3385.7,3383.1,3.121]
[1734986979236,2.95543,3383.7,3382.4,1.183707]
[1734986979443,2.95463,3384.6,3382.4,1.183707]
[1734986979444,0.5563,3383.6,3382.6,2.95626]
[1734986979735,0.5563,3383.6,3382.5,0.60075026]
[1734986980235,0.5563,3383.6,3382.5,3.55712026]
[1734986980445,2.9556,3383.4,3382.4,1.183707]
[1734986980587,0.5563,3383.7,3382.4,1.183707]
[1734986980787,0.5563,3383.5,3382.5,2.95636]
[1734986981088,0.5563,3383.5,3382.3,4.140296]
[1734986981299,2.9556,3383.4,3382.3,1.183816]
[1734986981541,0.5563,3383.5,3382.3,1.183816]
[1734986981746,0.5563,3383.5,3382.3,1.77698058]
[1734986981904,2.95565,3383.4,3382.4,0.17769806]
[1734986982131,0.5563,3383.5,3382.4,0.17769806]
[1734986982425,3.51184,3383.5,3382.4,2.95647]
[1734986982792,0.5563,3383.5,3382.5,2.95637]
[1734986983125,0.5563,3383.5,3382.3,1.77698058]
[1734986983639,3.51182,3383.5,3382.4,2.95645]
[1734986984305,0.5563,3383.5,3382.3,1.80653878]
[1734986984505,0.5563,3383.5,3382.4,0.48065388]
[1734986984707,0.5563,3383.5,3382.7,2.95616]
[1734986984917,0.5563,3383.5,3382.8,0.02955495]
[1734986985231,0.58608795,3384.6,3383.1,2.95585]
[1734986985232,0.5563,3384.1,3383.1,2.95585]
[1734986985527,0.5563,3384.1,3383.2,0.02955122]
[1734986985685,0.5563,3384.1,3383.1,2.95586]
[1734986985895,2.95517,3383.9,3382.8,2.95612]
[1734986986100,2.95538,3383.7,3382.8,0.5994216]
[1734986986302,2.95515,3384.0,3382.7,5.95615]
[1734986986599,0.5563,3384.1,3383.1,0.7615]
[1734986986893,0.5563,3384.5,3383.9,2.95515]
[1734986987093,0.5563,3384.5,3384.0,3.250585]
[1734986987539,0.5563,3384.5,3384.1,0.02954521]
[1734986987713,0.5563,3385.2,3384.3,2.95478]
[1734986987913,0.5563,3385.2,3384.6,2.95448]
[1734986988901,0.5563,3385.2,3384.4,2.95473]
[1734986989143,0.5563,3385.2,3384.5,0.35325215]
[1734986989347,0.5563,3385.2,3384.5,3.30787215]
[1734986991613,0.5563,3385.2,3384.5,0.35325215]
[1734986991806,0.5563,3385.2,3384.2,3.53261146]
[1734986992007,0.5563,3385.2,3384.4,2.95473]
[1734986992328,0.5563,3385.2,3384.2,6.53266146]
[1734986993240,0.5563,3385.2,3384.2,0.57779146]
[1734986993662,0.5563,3385.2,3384.2,3.53269146]
[1734986993833,2.95419,3385.1,3384.2,0.57779146]
[1734986994040,2.95423,3385.0,3384.0,3.250565]
[1734986994348,0.55,3384.9,3383.4,0.7615]
[1734986994548,0.55,3384.9,3382.6,0.7615]
[1734986994549,0.55,3384.2,3382.6,0.7615]
[1734986994749,0.5563,3384.1,3382.6,2.9563]
[1734986994929,0.96242,3384.1,3382.7,0.46290055]
[1734986995136,0.55,3383.9,3382.4,0.48065388]
[1734986995333,3.53678075,3384.1,3382.4,0.48065388]
[1734986995533,3.51219,3383.1,3382.3,2.37586759]
[1734986995751,2.95598,3383.0,3382.3,1.19205159]
[1734986995954,2.95605,3382.9,3382.3,1.19205159]
[1734986996346,2.95629,3382.7,3382.3,1.19205159]
[1734986996746,2.95629,3382.7,3382.0,1.183935]
[1734986996978,2.95605,3382.9,3382.0,1.183935]
[1734986997196,0.5563,3383.1,3382.0,1.183935]
[1734986997339,2.95608,3382.9,3382.0,1.183935]
[1734986998250,0.88804413,3383.1,3382.0,1.183935]
[1734986998448,2.95614,3382.8,3382.0,1.183935]
[1734986999070,0.55,3383.0,3382.0,1.183935]
[1734986999248,0.55,3382.5,3381.5,0.60002072]
[1734986999448,0.5563,3382.4,3381.5,0.60002072]
[1734987000365,6.54357585,3383.5,3381.5,0.60002072]
[1734987000366,0.5563,3383.4,3381.9,2.95691]
[1734987000674,0.5563,3383.4,3381.8,3.8131]
[1734987000675,2.95579,3383.2,3382.1,2.95673]
[1734987000834,2.95587,3383.1,3382.1,2.95673]
[1734987001035,0.5563,3383.4,3382.1,4.22745512]
[1734987001036,2.95574,3383.3,3382.1,4.22745512]
[1734987001378,0.5563,3383.4,3382.1,0.676983]
[1734987001683,2.95575,3383.3,3382.3,2.95655]
[1734987001842,2.95575,3383.3,3382.2,2.95664]
[1734987002183,3.5119,3383.4,3381.9,2.9569]
[1734987002381,2.9559,3383.1,3381.9,2.9569]
[1734987002688,2.95602,3383.0,3381.9,2.9569]
[1734987002981,2.95606,3382.9,3382.0,0.59504229]
[1734987003142,0.55,3383.1,3382.0,0.59504229]
[1734987003342,0.5563,3381.7,3381.4,0.5563]
[1734987003964,3.51345,3381.7,3380.5,1.19205159]
[1734987004168,0.5563,3381.7,3380.6,0.57868456]
[1734987004803,3.51339,3381.7,3380.6,4.142425]
[1734987005014,0.5563,3381.7,3380.7,2.95796]
[1734987005177,2.95727,3381.5,3380.3,2.95829]
[1734987005383,0.55,3381.6,3380.6,2.95803]
[1734987005986,0.5563,3381.7,3380.7,0.02957568]
[1734987006192,0.5563,3381.7,3380.5,0.59356061]
[1734987006399,0.5563,3382.1,3381.2,2.9575]
[1734987006566,0.5563,3382.1,3381.0,0.7654]
[1734987006567,0.5563,3382.1,3381.0,3.72305]
[1734987006775,0.5563,3382.1,3381.0,0.7654]
[1734987007014,0.5563,3382.1,3381.4,2.95734]
[1734987007298,0.5563,3382.1,3381.2,2.95751]
[1734987007609,0.5563,3382.1,3381.0,3.7654]
[1734987007771,0.5563,3382.1,3381.3,2.95742]
[1734987007968,1.22672237,3382.6,3381.4,0.32531036]
[1734987008168,1.22672237,3382.6,3381.8,3.7496]
[1734987008409,1.22672237,3382.6,3381.8,0.7926]
[1734987008587,1.22672237,3382.6,3382.4,2.95647]
[1734987008791,1.22672237,3383.0,3382.1,2.95671]
[1734987009004,0.5563,3383.3,3382.9,2.95596]
[1734987009309,0.5563,3383.9,3382.5,6.9091763]
[1734987009514,0.5563,3383.9,3382.9,2.95599]
[1734987009702,0.5563,3383.9,3383.3,2.95563]
[1734987010212,3.13066075,3385.1,3382.2,0.29862722]
[1734987010213,3.8105224,3384.6,3382.2,0.29862722]
[1734987010402,0.5563,3383.6,3381.5,0.8106]
[1734987010597,0.5563,3382.5,3381.5,0.8106]
[1734987010910,0.5563,3382.5,3381.5,1.41530423]
[1734987011124,0.5563,3382.5,3381.5,0.8106]
[1734987011280,2.95651,3382.4,3381.4,0.295742]
[1734987011477,3.26332225,3382.4,3381.4,0.295742]
[1734987011815,0.30681225,3382.4,3381.4,3.253092]
[1734987012013,0.30681225,3382.4,3381.4,0.295742]
[1734987012215,0.30681225,3382.4,3381.2,2.95749]
[1734987012373,0.30681225,3382.4,3381.1,0.60043573]
[1734987012374,2.95676,3382.1,3381.1,0.60043573]
[1734987012574,0.55,3382.4,3381.4,2.95727]
[1734987012812,0.5563,3382.5,3381.1,0.60043573]
[1734987013318,0.5563,3382.5,3381.7,2.957]
[1734987013518,0.5563,3382.5,3381.8,0.02956682]
[1734987013672,0.5563,3383.1,3381.3,0.02956293]
[1734987013877,0.5563,3383.1,3381.9,0.59456654]
[1734987014077,0.9201043,3383.1,3381.5,0.7865]
[1734987014382,0.5563,3382.3,3381.1,2.95758]
[1734987014912,0.5563,3382.3,3381.2,0.02957008]
[1734987015117,4.18835721,3383.4,3381.2,0.02957008]
[1734987015118,0.5563,3382.8,3381.2,0.02957008]
[1734987015287,0.5563,3382.8,3381.3,2.95744]
[1734987015486,0.5563,3382.8,3382.2,2.95662]
[1734987016016,0.5563,3382.8,3381.7,2.95705]
[1734987016224,0.5563,3382.8,3381.6,2.98666399]
[1734987016523,0.5563,3383.2,3382.3,2.9565]
[1734987017081,0.5563,3383.2,3381.5,4.38038357]
[1734987017312,0.5563,3383.2,3382.1,2.95666]
[1734987017479,2.95603,3383.0,3382.0,2.95682]
[1734987017672,2.95598,3383.0,3381.9,2.95683]
[1734987017909,2.95598,3383.0,3381.6,3.76999817]
[1734987017910,2.95594,3383.1,3382.0,2.95676]
[1734987018222,2.95676,3382.1,3381.5,0.60278357]
[1734987018390,0.55,3382.6,3380.5,0.8154]
[1734987018603,2.95639,3382.5,3380.7,0.8154]
[1734987018799,0.5563,3382.7,3381.0,0.8154]
[1734987019130,0.5563,3382.7,3381.1,0.02956453]
[1734987019131,2.95641,3382.5,3381.1,0.02956453]
[1734987019633,3.51253,3382.7,3381.6,2.9571]
[1734987019924,0.5563,3382.7,3381.2,2.9575]
[1734987020131,2.95636,3382.6,3381.1,0.02956581]
[1734987020300,2.95636,3382.6,3381.2,3.55176606]
[1734987020499,2.95636,3382.6,3381.4,2.95729]
[1734987020706,0.55,3382.6,3381.0,0.8154]
[1734987020902,2.95653,3382.4,3381.4,2.95735]
[1734987021101,0.5563,3382.7,3381.6,2.95713]
[1734987021326,0.5563,3382.7,3381.8,0.8032]
[1734987021528,2.95578,3383.2,3381.8,0.8032]
[1734987021529,0.5563,3383.2,3381.9,2.95689]
[1734987021727,0.5563,3383.2,3381.9,0.02956236]
[1734987021893,0.5563,3383.2,3382.2,2.95664]
[1734987022085,0.5563,3383.2,3381.8,0.8032]
[1734987022548,0.5563,3382.6,3381.4,0.7901]
[1734987022758,0.5563,3382.6,3381.5,0.029568]
[1734987022912,0.5563,3383.1,3382.6,2.95624]
[1734987023090,0.5563,3383.1,3382.5,2.95637]
[1734987023285,0.5563,3383.1,3382.5,3.327087]
[1734987023485,0.5563,3383.1,3382.5,0.370717]
[1734987023724,3.51218,3383.1,3382.0,3.0]
[1734987023938,0.5563,3383.1,3382.1,2.95665]
[1734987024117,0.5563,3383.1,3381.8,3.0]
[1734987024333,0.5563,3383.1,3382.1,2.95668]
[1734987024940,3.5122,3383.1,3381.7,1.41756188]
[1734987025090,3.5122,3383.1,3382.0,2.95681]
[1734987025625,0.55,3383.0,3381.8,3.39874619]